fUSD/lending_fUSD_20251206
["ID","MTS","AMOUNT","RATE_DAILY","PERIOD"]
[396507886,1765017104642,966.5705526,0.00014733,2]
[396507887,1765017104683,-10000.01,0.00014735,2]
[396507888,1765017104798,-10000.01,0.00014735,2]
[396507889,1765017104903,-10000.01,0.00014735,2]
[396507890,1765017105002,-10000.01,0.00014735,2]
[396507891,1765017105146,-10000.01,0.00014735,2]
[396507892,1765017105221,-10000.01,0.00014735,2]
[396507893,1765017146354,332.454739,0.00014661,2]
[396507894,1765017157519,9667.555261,0.00014635,2]
[396507895,1765017157542,1372.67482125,0.00014635,2]
[396507897,1765017183632,150.0,0.00014734,2]
[396507898,1765017188676,500.0,0.00014734,2]
[396507899,1765017188730,500.0,0.00014734,2]
[396507900,1765017188783,500.0,0.00014734,2]
[396507901,1765017188821,500.0,0.00014734,2]
[396507902,1765017188865,500.0,0.00014734,2]
[396507903,1765017188914,500.0,0.00014734,2]
[396507904,1765017188954,500.0,0.00014734,2]
[396507905,1765017188998,500.0,0.00014734,2]
[396507906,1765017189085,500.0,0.00014734,2]
[396507907,1765017189140,500.0,0.00014734,2]
[396507908,1765017189177,500.0,0.00014734,2]
[396507909,1765017189219,500.0,0.00014734,2]
[396507910,1765017189259,500.0,0.00014734,2]
[396507911,1765017189302,500.0,0.00014734,2]
[396507912,1765017189351,500.0,0.00014734,2]
[396507913,1765017189393,500.0,0.00014734,2]
[396507914,1765017189436,477.33517875,0.00014734,2]
[396507915,1765017189461,22.66482125,0.00014734,2]
[396507916,1765017189505,500.0,0.00014734,2]
[396507917,1765017189550,500.0,0.00014734,2]
[396507918,1765017189587,500.0,0.00014734,2]
[396507919,1765017189647,500.0,0.00014734,2]
[396507920,1765017189684,500.0,0.00014734,2]
[396507921,1765017189726,500.0,0.00014734,2]
[396507922,1765017189762,500.0,0.00014734,2]
[396507923,1765017189802,500.0,0.00014734,2]
[396507924,1765017189843,500.0,0.00014734,2]
[396507925,1765017189887,266.23489194,0.00014734,2]
[396507926,1765017189933,500.0,0.00014734,2]
[396507927,1765017189971,500.0,0.00014734,2]
[396507928,1765017190283,500.0,0.00014734,2]
[396507929,1765017190394,500.0,0.00014734,2]
[396507930,1765017190453,500.0,0.00014734,2]
[396507931,1765017190554,500.0,0.00014734,2]
[396507932,1765017190603,500.0,0.00014734,2]
[396507933,1765017190672,500.0,0.00014734,2]
[396507934,1765017190728,500.0,0.00014734,2]
[396507935,1765017190772,500.0,0.00014734,2]
[396507936,1765017190879,211.11028681,0.00014734,2]
[396507937,1765017190906,288.88971319,0.00014734,2]
[396507938,1765017190948,500.0,0.00014734,2]
[396507939,1765017190997,500.0,0.00014734,2]
[396507940,1765017191072,500.0,0.00014734,2]
[396507941,1765017191471,-431.8581715,0.00014735,2]
[396507942,1765017195758,-300.0,0.00014735,2]
[396507943,1765017196837,-595.03276176,0.00014735,2]
[396507944,1765017199422,-153.76618104,0.00014735,2]
[396507945,1765017201551,-431.46689418,0.00014735,2]
[396507946,1765017204294,-225.91819939,0.00014735,2]
[396507947,1765017206443,-208.0204157,0.00014735,2]
[396507948,1765017209850,-472.68663344,0.00014735,2]
[396507949,1765017211435,-307.98806503,0.00014735,2]
[396507950,1765017212990,-276.85341313,0.00014735,2]
[396507951,1765017216482,-300.0,0.00014735,2]
[396507952,1765017216826,500.0,0.00014734,2]
[396507953,1765017216866,500.0,0.00014734,2]
[396507954,1765017216912,500.0,0.00014734,2]
[396507955,1765017216950,500.0,0.00014734,2]
[396507956,1765017217001,500.0,0.00014734,2]
[396507957,1765017217053,500.0,0.00014734,2]
[396507958,1765017217104,500.0,0.00014734,2]
[396507959,1765017217142,500.0,0.00014734,2]
[396507960,1765017217195,500.0,0.00014734,2]
[396507961,1765017217238,500.0,0.00014734,2]
[396507962,1765017217284,500.0,0.00014734,2]
[396507963,1765017217322,500.0,0.00014734,2]
[396507964,1765017217369,500.0,0.00014734,2]
[396507965,1765017218445,-264.66655177,0.00014735,2]
[396507966,1765017221896,-343.07861264,0.00014735,2]
[396507967,1765017226177,-458.69138335,0.00014735,2]
[396507968,1765017228927,-297.31035049,0.00014735,2]
[396507969,1765017232042,456.73823993,0.00014734,2]
[396507970,1765017232232,-245.60118425,0.00014735,2]
[396507971,1765017233971,-151.65343,0.00014735,2]
[396507972,1765017235627,-229.54637739,0.00014735,2]
[396507973,1765017238326,-255.83707465,0.00014735,2]
[396507974,1765017240653,-255.08896124,0.00014735,2]
[396507975,1765017242030,300.0,0.00014734,2]
[396507976,1765017242108,-231.80555242,0.00014735,2]
[396507977,1765017245418,-379.94827151,0.00014735,2]
[396507978,1765017247796,-225.52885596,0.00014735,2]
[396507979,1765017249298,-269.5080365,0.00014735,2]
[396507980,1765017250880,-215.50611334,0.00014735,2]
[396507981,1765017254071,-293.73804115,0.00014735,2]
[396507982,1765017258283,-480.76559551,0.00014735,2]
[396507983,1765017260198,-319.46173861,0.00014735,2]
[396507984,1765017262323,-207.34849227,0.00014735,2]
[396507985,1765017264925,-307.25812707,0.00014735,2]
[396507986,1765017267743,-182.89270331,0.00014735,2]
[396507987,1765017269384,-188.66930105,0.00014735,2]
[396507988,1765017270901,-478.49219958,0.00014735,2]
[396507989,1765017272462,-414.55378881,0.00014735,2]
[396507990,1765017274117,-200.0,0.00014735,2]
[396507991,1765017276196,-528.15159698,0.00014735,2]
[396507992,1765017277860,-217.98138319,0.00014735,2]
[396507993,1765017279938,-231.51766019,0.00014735,2]
[396507994,1765017283710,-217.75805945,0.00014735,2]
[396507995,1765017286517,-243.45359112,0.00014735,2]
[396507996,1765017288763,-187.51766019,0.00014735,2]
[396507997,1765017291426,-499.07298463,0.00014735,2]
[396507998,1765017292361,302.14895524,0.00014635,2]
[396507999,1765017293808,-251.07577082,0.00014735,2]
[396508000,1765017296211,-200.45362261,0.00014735,2]
[396508001,1765017298978,-285.9509075,0.00014735,2]
[396508002,1765017301087,-280.66461369,0.00014735,2]
[396508003,1765017301232,652.23309164,0.00014734,2]
[396508004,1765017301256,547.76690836,0.00014734,2]
[396508005,1765017303226,-174.77087134,0.00014735,2]
[396508006,1765017303596,300.0,0.00014734,2]
[396508007,1765017305323,-429.40019948,0.00014735,2]
[396508008,1765017307551,200.0,0.00014735,2]
[396508009,1765017307955,-300.0,0.00014735,2]
[396508010,1765017309450,-397.77773669,0.00014735,2]
[396508011,1765017312220,-191.628433,0.00014735,2]
[396508012,1765017314858,-422.76234728,0.00014735,2]
[396508013,1765017316884,-331.80715662,0.00014735,2]
[396508014,1765017318421,-349.80059099,0.00014735,2]
[396508015,1765017319990,-288.0,0.00014735,2]
[396508016,1765017322617,-281.93673889,0.00014735,2]
[396508017,1765017326855,-330.44750719,0.00014735,2]
[396508018,1765017351084,199.94850002,0.00014635,2]
[396508019,1765017361290,300.0,0.00014734,2]
[396508020,1765017362219,262.0,0.00014734,2]
[396508021,1765017364182,150.0,0.00014734,2]
[396508022,1765017411008,472.29,7.578e-05,2]
[396508023,1765017411217,472.29,7.977e-05,2]
[396508024,1765017411424,472.29,8.376e-05,2]
[396508025,1765017411607,472.29,8.775e-05,2]
[396508026,1765017411803,472.29,9.174e-05,2]
[396508027,1765017411997,472.29,9.573e-05,2]
[396508028,1765017412426,472.29,9.972e-05,2]
[396508029,1765017412473,472.29,0.00010371,2]
[396508030,1765017412634,472.29,0.00010769,2]
[396508031,1765017412778,472.29,0.00011168,2]
[396508032,1765017412971,472.29,0.00011567,2]
[396508033,1765017413165,472.29,0.00011966,2]
[396508034,1765017413357,472.29,0.00012365,2]
[396508035,1765017413563,472.29,0.00012764,2]
[396508036,1765017413779,472.29,0.00013163,2]
[396508037,1765017413963,472.29,0.00013562,2]
[396508038,1765017414151,472.29,0.0001396,2]
[396508039,1765017414353,11.36459162,0.00014359,2]
[396508040,1765017414377,460.92540838,0.00014359,2]
[396508041,1765017430249,200.0,0.00014735,2]
[396508042,1765017434592,200.0,0.00014735,2]
[396508043,1765017438867,151.0,0.00014735,2]
[396508044,1765017438964,151.0,0.00014735,2]
[396508045,1765017439134,151.0,0.00014735,2]
[396508046,1765017439676,151.0,0.00014735,2]
[396508047,1765017440298,151.0,0.00014735,2]
[396508048,1765017440929,151.0,0.00014735,2]
[396508049,1765017441509,151.0,0.00014735,2]
[396508050,1765017441550,500.0,0.00014735,2]
[396508051,1765017442160,151.0,0.00014735,2]
[396508052,1765017442805,151.0,0.00014735,2]
[396508053,1765017443479,151.0,0.00014735,2]
[396508054,1765017444840,151.0,0.00014735,2]
[396508055,1765017445953,151.0,0.00014735,2]
[396508056,1765017446658,151.0,0.00014735,2]
[396508057,1765017447267,284.19592129,0.00014735,2]
[396508058,1765017451695,-6391.88867033,0.00014735,2]
[396508059,1765017451710,-10000.01,0.00014735,2]
[396508060,1765017451750,-10000.01,0.00014735,2]
[396508061,1765017451798,-10000.01,0.00014735,2]
[396508062,1765017451824,-10000.01,0.00014735,2]
[396508063,1765017453273,-10000.01,0.00014735,2]
[396508064,1765017453372,-10000.01,0.00014735,2]
[396508065,1765017453489,-10000.01,0.00014735,2]
[396508066,1765017453588,-10000.01,0.00014735,2]
[396508067,1765017453706,-10000.01,0.00014735,2]
[396508068,1765017456379,-10000.01,0.00014735,2]
[396508069,1765017456517,-10000.01,0.00014735,2]
[396508070,1765017456607,-10000.01,0.00014735,2]
[396508071,1765017456728,-10000.01,0.00014735,2]
[396508072,1765017456863,-10000.01,0.00014735,2]
[396508073,1765017543735,150.0,0.00014734,2]
[396508074,1765017544155,9850.01,0.00014635,2]
[396508075,1765017544179,86.19707407,0.00014635,2]
[396508076,1765017575694,264.38033587,0.00014635,2]
[396508077,1765017601218,300.0,0.00014734,2]
[396508078,1765017601265,1200.0,0.00014734,2]
[396508079,1765017607849,272.0,0.00014735,2]
[396508080,1765017625563,7877.43259006,0.00014635,2]
[396508081,1765017625590,4136.14776432,0.00014635,2]
[396508091,1765017723804,150.0,0.00014734,2]
[396508104,1765017862575,231.33279386,0.00014635,2]
[396508108,1765017898138,-500.0091281,0.00014735,2]
[396508109,1765017900195,-503.72178989,0.00014735,2]
[396508110,1765017901296,300.0,0.00014734,2]
[396508111,1765017901372,1200.0,0.00014734,2]
[396508112,1765017904179,150.0,0.00014734,2]
[396508114,1765017906369,200.0,0.00014735,2]
[396508115,1765017907433,500.0,0.00014734,2]
[396508116,1765017907495,503.72178989,0.00014734,2]
[396508119,1765017930520,2628.80765193,0.00014635,2]
[396508120,1765017930543,6313.77871467,0.00014635,2]
[396508121,1765017931926,-405.93948708,0.00014735,2]
[396508127,1765017986957,-300.0,0.00014735,2]
[396508129,1765018003027,-324.45510884,0.00014735,2]
[396508130,1765018005246,-180.49117804,0.00014735,2]
[396508131,1765018007916,-227.77791142,0.00014735,2]
[396508133,1765018010069,-266.83913473,0.00014735,2]
[396508138,1765018067813,500.0,0.00014735,2]
[396508140,1765018077530,-215.0738,0.00014735,2]
[396508142,1765018079073,-322.05732119,0.00014735,2]
[396508143,1765018082249,-308.03318091,0.00014735,2]
[396508144,1765018083893,150.0,0.00014734,2]
[396508145,1765018084297,-416.53052725,0.00014735,2]
[396508147,1765018104210,3036.23128533,0.00014635,2]
[396508148,1765018104235,10000.01,0.00014635,2]
[396508149,1765018104261,10000.01,0.00014635,2]
[396508150,1765018104285,10000.01,0.00014635,2]
[396508151,1765018104311,10000.01,0.00014635,2]
[396508152,1765018104335,10000.01,0.00014635,2]
[396508153,1765018104359,10000.01,0.00014635,2]
[396508154,1765018104393,10000.01,0.00014635,2]
[396508155,1765018104419,10000.01,0.00014635,2]
[396508156,1765018104444,10000.01,0.00014635,2]
[396508157,1765018114532,319.71676795,0.00014634,2]
[396508159,1765018116691,500.0,0.00014634,2]
[396508160,1765018116756,500.0,0.00014634,2]
[396508161,1765018116804,500.0,0.00014634,2]
[396508162,1765018116857,500.0,0.00014634,2]
[396508163,1765018116905,500.0,0.00014634,2]
[396508164,1765018116963,500.0,0.00014634,2]
[396508165,1765018117086,500.0,0.00014634,2]
[396508166,1765018117161,598.5290436,0.00014634,2]
[396508167,1765018121889,-232.31,0.00014635,2]
[396508168,1765018135926,5581.76418845,0.00014635,2]
[396508169,1765018135949,5230.45813051,0.00014635,2]
[396508170,1765018136794,-632.78772076,0.00014635,2]
[396508172,1765018138975,-162.175406,0.00014635,2]
[396508174,1765018142917,-162.175406,0.00014635,2]
[396508175,1765018145699,-233.32285711,0.00014635,2]
[396508176,1765018146716,-182.46438961,0.00014635,2]
[396508177,1765018147318,202.41619468,0.00014635,2]
[396508178,1765018148262,-241.32,0.00014635,2]
[396508179,1765018152060,-182.04773697,0.00014635,2]
[396508180,1765018153792,-500.05747964,0.00014635,2]
[396508181,1765018162041,2528.660996,0.00014562,2]
[396508183,1765018182496,-200.05410493,0.00014635,2]
[396508184,1765018184039,-490.31482809,0.00014635,2]
[396508186,1765018186989,-619.03414726,0.00014635,2]
[396508187,1765018189849,-361.80776812,0.00014635,2]
[396508188,1765018201253,300.0,0.00014634,2]
[396508189,1765018201304,1200.0,0.00014634,2]
[396508190,1765018203772,271.0,0.00014635,2]
[396508202,1765018231989,-36368.66950801,0.00014635,2]
[396508203,1765018232096,-1252.56854022,0.00014635,2]
[396508205,1765018239968,-625142.56882195,0.00014635,2]
[396508206,1765018239978,-1008.9532,0.00014635,2]
[396508207,1765018239988,-500.0,0.00014735,2]
[396508208,1765018239999,-500.0,0.00014735,2]
[396508209,1765018240009,-342.01626432,0.00014735,2]
[396508210,1765018240019,-1000.0,0.00014735,2]
[396508211,1765018240030,-250.0,0.00014741,2]
[396508212,1765018240041,-472.29,0.00014758,2]
[396508213,1765018240055,-250.0,0.00014773,2]
[396508214,1765018240065,-1495.45607948,0.00014811,2]
[396508215,1765018240076,-500.0,0.00014835,2]
[396508216,1765018240087,-500.0,0.00014835,2]
[396508217,1765018240098,-500.0,0.00014835,2]
[396508218,1765018240108,-500.0,0.00014835,2]
[396508219,1765018240119,-500.0,0.00014835,2]
[396508220,1765018240260,-500.0,0.00014835,2]
[396508221,1765018240270,-500.0,0.00014835,2]
[396508222,1765018240279,-506.24410093,0.00014835,2]
[396508223,1765018240289,-500.0,0.00014835,2]
[396508224,1765018240299,-500.0,0.00014835,2]
[396508225,1765018240308,-618.45750441,0.00014835,2]
[396508226,1765018240318,-987.19,0.00014835,2]
[396508227,1765018240328,-500.0,0.00014835,2]
[396508228,1765018240337,-500.0,0.00014835,2]
[396508229,1765018240346,-3401.92,0.00014872,2]
[396508230,1765018240354,-200.0,0.00014882,2]
[396508231,1765018240364,-3251.97,0.00014908,2]
[396508232,1765018240377,-1926.14,0.00014908,2]
[396508233,1765018240386,-299.99,0.00014908,2]
[396508234,1765018240395,-22705.09,0.00014908,2]
[396508235,1765018240403,-5679.42,0.00014909,2]
[396508236,1765018240413,-500.0,0.0001491,2]
[396508237,1765018240422,-500.0,0.0001491,2]
[396508238,1765018240432,-502.41193472,0.0001491,2]
[396508239,1765018240441,-1351.28,0.00014911,2]
[396508240,1765018240450,-999.99,0.00014911,2]
[396508241,1765018240459,-60642.0,0.00014911,2]
[396508242,1765018240468,-150.99,0.00014911,2]
[396508243,1765018240477,-150.99,0.00014911,2]
[396508244,1765018240486,-9999.99,0.00014911,2]
[396508245,1765018240496,-38352.72,0.00014911,2]
[396508246,1765018240506,-3798.63,0.00014911,2]
[396508247,1765018240516,-1458.8,0.00014911,2]
[396508248,1765018240526,-9801.82,0.00014911,2]
[396508249,1765018240535,-9999.99,0.00014911,2]
[396508250,1765018240544,-270.23,0.00014911,2]
[396508251,1765018240554,-8942.5863666,0.00014998,2]
[396508252,1765018240563,-10812.22231893,0.00014998,2]
[396508253,1765018240576,-200.0,0.00015031,2]
[396508254,1765018240586,-202.41619461,0.00015101,2]
[396508255,1765018240596,-987.19,0.00015109,2]
[396508256,1765018240605,-472.29,0.00015157,2]
[396508257,1765018240616,-19495.00862444,0.00015299,2]
[396508259,1765018240625,-8942.5863666,0.00015361,2]
[396508261,1765018240635,-10812.22231893,0.00015361,2]
[396508263,1765018240645,-987.19,0.00015383,2]
[396508265,1765018240654,-507.17450848,0.00015515,2]
[396508267,1765018240663,-500.0,0.00015515,2]
[396508269,1765018240680,-500.0,0.00015515,2]
[396508272,1765018240689,-202.41619461,0.00015568,2]
[396508274,1765018240699,-1000.0,0.00015619,2]
[396508276,1765018240709,-500.0,0.00015619,2]
[396508278,1765018240719,-500.0,0.00015619,2]
[396508280,1765018240728,-500.0,0.00015619,2]
[396508282,1765018240738,-500.0,0.00015619,2]
[396508284,1765018240747,-500.0,0.00015619,2]
[396508286,1765018240757,-500.0,0.00015619,2]
[396508288,1765018240766,-500.0,0.00015619,2]
[396508290,1765018240775,-500.0,0.00015619,2]
[396508292,1765018240789,-500.0,0.00015619,2]
[396508294,1765018240798,-200.0,0.00015619,2]
[396508296,1765018240808,-207.4,0.00015619,2]
[396508298,1765018240818,-215.0738,0.00015619,2]
[396508300,1765018240827,-294.26754531,0.00015619,2]
[396508302,1765018240837,-300.0,0.00015619,2]
[396508304,1765018240849,-219.37,0.00015637,2]
[396508306,1765018240858,-987.19,0.00015657,2]
[396508308,1765018240867,-201.27,0.00015709,2]
[396508310,1765018240879,-535.94,0.00015713,2]
[396508312,1765018240889,-8942.5863666,0.00015723,2]
[396508314,1765018240898,-10812.22231893,0.00015723,2]
[396508316,1765018240907,-255.0,0.00015854,2]
[396508318,1765018240919,-987.19,0.00015931,2]
[396508320,1765018240929,-6158.20763505,0.00015983,2]
[396508323,1765018240939,-1000.0,0.00015999,3]
[396508325,1765018240948,-420.0,0.00016022,2]
[396508327,1765018240957,-202.41619461,0.00016034,2]
[396508329,1765018240967,-8942.5863666,0.00016086,2]
[396508330,1765018240976,-10812.22231893,0.00016086,2]
[396508333,1765018240988,-1680.0,0.00016098,2]
[396508335,1765018240998,-300.0,0.00016099,2]
[396508337,1765018241008,-1852.42,0.00016104,2]
[396508339,1765018241018,-1000.0,0.00016167,2]
[396508341,1765018241028,-671.52788671,0.00016185,2]
[396508343,1765018241037,-1000.0,0.00016199,3]
[396508345,1765018241046,-150.0,0.000162,2]
[396508347,1765018241056,-150.0,0.000162,2]
[396508349,1765018241065,-150.0,0.000162,2]
[396508351,1765018241074,-150.0,0.000162,2]
[396508353,1765018241084,-150.0,0.000162,2]
[396508355,1765018241093,-150.0,0.000162,2]
[396508357,1765018241103,-150.0,0.000162,2]
[396508359,1765018241113,-150.0,0.000162,2]
[396508361,1765018241122,-150.0,0.000162,2]
[396508363,1765018241131,-150.0,0.000162,2]
[396508365,1765018241140,-150.0,0.000162,2]
[396508367,1765018241149,-150.0,0.000162,2]
[396508369,1765018241159,-150.0,0.000162,2]
[396508371,1765018241168,-150.0,0.000162,2]
[396508374,1765018241178,-150.0,0.000162,2]
[396508376,1765018241189,-987.19,0.00016205,2]
[396508378,1765018241198,-250.0,0.00016209,2]
[396508380,1765018241208,-150.0,0.00016241,2]
[396508382,1765018241217,-150.0,0.00016244,2]
[396508384,1765018241226,-150.0,0.00016253,2]
[396508386,1765018241236,-150.0,0.00016282,2]
[396508388,1765018241245,-150.0,0.00016282,2]
[396508390,1765018241254,-150.0,0.00016286,2]
[396508392,1765018241264,-150.0,0.00016288,2]
[396508394,1765018241273,-150.0,0.0001629,2]
[396508396,1765018241282,-150.0,0.00016306,2]
[396508398,1765018241292,-150.0,0.0001632,2]
[396508400,1765018241302,-150.0,0.00016323,2]
[396508402,1765018241311,-150.0,0.00016332,2]
[396508404,1765018241320,-1495.45607946,0.00016342,2]
[396508406,1765018241329,-150.0,0.00016359,2]
[396508408,1765018241339,-150.0,0.00016364,2]
[396508410,1765018241348,-150.0,0.00016364,2]
[396508412,1765018241357,-150.0,0.00016371,2]
[396508414,1765018241366,-150.0,0.00016376,2]
[396508417,1765018241376,-150.0,0.0001638,2]
[396508419,1765018241385,-150.0,0.000164,2]
[396508421,1765018241395,-739.0,0.000164,2]
[396508423,1765018241404,-150.0,0.00016405,2]
[396508425,1765018241413,-840.33706204,0.00016408,2]
[396508427,1765018241422,-150.0,0.00016412,2]
[396508429,1765018241431,-150.0,0.0001642,2]
[396508431,1765018241441,-500.0,0.00016438,2]
[396508433,1765018241449,-610.28276941,0.00016438,2]
[396508435,1765018241458,-11190.97,0.00016438,2]
[396508437,1765018241468,-150.0,0.0001644,2]
[396508439,1765018241476,-150.0,0.00016445,2]
[396508441,1765018241485,-150.0,0.00016445,2]
[396508443,1765018241495,-8942.5863666,0.00016449,2]
[396508445,1765018241504,-10812.22231893,0.00016449,2]
[396508447,1765018241514,-150.0,0.00016457,2]
[396508449,1765018241523,-150.0,0.00016463,2]
[396508451,1765018241532,-150.0,0.00016465,2]
[396508453,1765018241541,-150.0,0.0001647,2]
[396508455,1765018241550,-987.19,0.00016479,2]
[396508457,1765018241559,-150.0,0.00016486,2]
[396508460,1765018241576,-150.0,0.000165,2]
[396508462,1765018241587,-202.41619461,0.00016501,2]
[396508464,1765018241597,-150.0,0.00016507,2]
[396508466,1765018241607,-200.0,0.00016509,2]
[396508468,1765018241616,-150.0,0.00016518,2]
[396508470,1765018241625,-150.0,0.00016527,2]
[396508472,1765018241634,-150.0,0.00016527,2]
[396508474,1765018241644,-150.0,0.00016543,2]
[396508477,1765018241653,-150.0,0.00016551,2]
[396508479,1765018241662,-150.0,0.0001656,2]
[396508481,1765018241671,-150.0,0.0001656,2]
[396508483,1765018241681,-150.0,0.00016568,2]
[396508485,1765018241690,-150.0,0.00016571,2]
[396508487,1765018241699,-150.0,0.00016595,2]
[396508489,1765018241708,-150.0,0.000166,2]
[396508491,1765018241718,-150.0,0.00016609,2]
[396508493,1765018241727,-150.0,0.00016609,2]
[396508495,1765018241737,-150.0,0.00016624,2]
[396508496,1765018241746,-150.0,0.00016629,2]
[396508499,1765018241755,-500.0,0.0001663,2]
[396508501,1765018241765,-150.0,0.00016639,2]
[396508503,1765018241774,-150.0,0.0001665,2]
[396508505,1765018241783,-150.0,0.0001665,2]
[396508507,1765018241792,-150.0,0.0001665,2]
[396508509,1765018241802,-150.0,0.00016676,2]
[396508511,1765018241811,-150.0,0.0001668,2]
[396508513,1765018241820,-150.0,0.00016683,2]
[396508515,1765018241829,-150.0,0.00016691,2]
[396508517,1765018241841,-150.0,0.00016691,2]
[396508519,1765018241851,-800.0,0.000167,2]
[396508521,1765018241860,-150.0,0.00016714,2]
[396508523,1765018241869,-1000.0,0.00016715,2]
[396508525,1765018241879,-150.0,0.00016727,2]
[396508527,1765018241887,-150.0,0.00016729,2]
[396508529,1765018241896,-150.0,0.00016732,2]
[396508531,1765018241905,-150.0,0.0001674,2]
[396508533,1765018241915,-987.19,0.00016753,2]
[396508535,1765018241924,-150.0,0.00016771,2]
[396508537,1765018241935,-500.0,0.00016772,2]
[396508539,1765018241944,-500.0,0.00016773,2]
[396508541,1765018241955,-500.0,0.00016773,2]
[396508543,1765018241964,-500.0,0.00016773,2]
[396508545,1765018241973,-500.0,0.00016773,2]
[396508547,1765018241983,-500.0,0.00016773,2]
[396508549,1765018241991,-500.0,0.00016773,2]
[396508551,1765018242000,-500.0,0.00016773,2]
[396508553,1765018242010,-500.0,0.00016773,2]
[396508555,1765018242019,-500.0,0.00016773,2]
[396508557,1765018242028,-500.0,0.00016773,2]
[396508558,1765018242038,-500.0,0.00016773,2]
[396508559,1765018242047,-500.52427539,0.00016773,2]
[396508560,1765018242055,-500.0,0.00016773,2]
[396508561,1765018242064,-432.59185548,0.00016773,2]
[396508562,1765018242073,-500.0,0.00016773,2]
[396508563,1765018242082,-500.0,0.00016773,2]
[396508564,1765018242092,-500.0,0.00016773,2]
[396508565,1765018242101,-500.0,0.00016773,2]
[396508566,1765018242110,-500.0,0.00016773,2]
[396508567,1765018242119,-500.31759257,0.00016773,2]
[396508568,1765018242133,-500.0,0.00016773,2]
[396508569,1765018242143,-500.0,0.00016773,2]
[396508570,1765018242152,-500.0,0.00016773,2]
[396508571,1765018242162,-500.0,0.00016773,2]
[396508572,1765018242172,-150.0,0.00016773,2]
[396508573,1765018242181,-150.0,0.00016773,2]
[396508574,1765018242190,-150.0,0.00016782,2]
[396508575,1765018242200,-150.0,0.000168,2]
[396508576,1765018242211,-150.0,0.000168,2]
[396508577,1765018242220,-150.0,0.000168,2]
[396508578,1765018242229,-150.0,0.000168,2]
[396508579,1765018242239,-8942.5863666,0.00016812,2]
[396508580,1765018242249,-10812.22231893,0.00016812,2]
[396508581,1765018242259,-150.0,0.00016814,2]
[396508582,1765018242268,-150.0,0.00016815,2]
[396508583,1765018242278,-150.0,0.0001683,2]
[396508584,1765018242287,-150.0,0.00016835,2]
[396508585,1765018242297,-1605.0,0.00016852,2]
[396508586,1765018242306,-610.068,0.00016852,2]
[396508587,1765018242316,-3446.0,0.00016852,2]
[396508588,1765018242325,-1323.0,0.00016852,2]
[396508589,1765018242335,-1259.0,0.00016852,2]
[396508590,1765018242344,-614.0,0.00016852,2]
[396508591,1765018242354,-150.0,0.00016852,2]
[396508592,1765018242363,-562.0,0.00016852,2]
[396508593,1765018242373,-6513.0,0.00016852,2]
[396508594,1765018242382,-150.0,0.00016855,2]
[396508595,1765018242392,-150.0,0.00016855,2]
[396508596,1765018242401,-150.0,0.00016859,2]
[396508597,1765018242411,-200.0,0.00016864,2]